bitfinex/quotes_BTCUSD_20240908
["timestamp","ask_amount","ask_price","bid_price","bid_amount"]
[1725823654278,1.65893284,54504.0,54503.0,0.00163]
[1725823654708,1.8913685,54504.0,54503.0,0.00163]
[1725823654951,2.07102163,54504.0,54503.0,0.00163]
[1725823655186,2.25835319,54504.0,54503.0,0.00163]
[1725823655422,2.25837918,54504.0,54503.0,0.00163]
[1725823655642,2.25919418,54504.0,54503.0,0.00163]
[1725823655847,2.25919848,54504.0,54503.0,0.00163]
[1725823656085,2.14953663,54504.0,54503.0,0.00163]
[1725823658009,2.09908404,54504.0,54503.0,0.00163]
[1725823658225,2.09736798,54504.0,54503.0,0.00163]
[1725823659020,2.04108936,54504.0,54503.0,0.00163]
[1725823659880,2.33464536,54504.0,54503.0,0.00163]
[1725823660732,2.31064536,54504.0,54503.0,0.00163]
[1725823660904,2.32464536,54504.0,54503.0,0.00163]
[1725823661119,2.33764536,54504.0,54503.0,0.00163]
[1725823661498,2.15266229,54504.0,54503.0,0.00163]
[1725823661714,1.329195,54496.0,54495.0,0.00163]
[1725823661924,1.88095418,54496.0,54495.0,0.00163]
[1725823662135,1.98095418,54496.0,54495.0,0.00163]
[1725823662359,2.35793055,54496.0,54495.0,0.00163]
[1725823662556,2.23900633,54496.0,54495.0,0.00163]
[1725823662768,2.23900633,54496.0,54495.0,1e-06]
[1725823662769,2.5716694,54496.0,54495.0,1e-06]
[1725823662979,2.60142692,54496.0,54495.0,1e-06]
[1725823663212,2.60102849,54496.0,54495.0,1e-06]
[1725823663882,2.54474987,54496.0,54495.0,1e-06]
[1725823664102,2.55874987,54496.0,54495.0,1e-06]
[1725823664316,2.55274987,54496.0,54495.0,1e-06]
[1725823664542,2.54474987,54496.0,54495.0,1e-06]
[1725823664748,2.57274987,54496.0,54495.0,1e-06]
[1725823664976,2.55874987,54496.0,54495.0,1e-06]
[1725823665187,2.54474987,54496.0,54495.0,1e-06]
[1725823665638,2.2260868,54496.0,54495.0,1e-06]
[1725823665862,2.2400868,54496.0,54495.0,1e-06]
[1725823666075,2.26688487,54496.0,54495.0,1e-06]
[1725823667180,2.25288487,54496.0,54495.0,1e-06]
[1725823667789,2.26688487,54496.0,54495.0,1e-06]
[1725823668006,2.447887,54496.0,54495.0,1e-06]
[1725823669128,2.44783352,54496.0,54495.0,1e-06]
[1725823670287,2.43383352,54496.0,54495.0,1e-06]
[1725823670481,2.44783352,54496.0,54495.0,1e-06]
[1725823671131,2.43383352,54496.0,54495.0,1e-06]
[1725823671561,2.44783352,54496.0,54495.0,1e-06]
[1725823671767,2.44783352,54496.0,54487.0,0.0616]
[1725823671768,1.027747,54488.0,54487.0,0.0616]
[1725823671977,1.32947931,54488.0,54487.0,0.0616]
[1725823672388,1.35825689,54488.0,54487.0,0.0616]
[1725823672593,1.43188689,54488.0,54487.0,0.0616]
[1725823672843,1.44488689,54488.0,54487.0,0.0616]
[1725823673046,1.44486982,54488.0,54487.0,0.0616]
[1725823674273,1.35664671,54488.0,54487.0,0.1449]
[1725823674740,1.00037471,54488.0,54487.0,0.1449]
[1725823674948,0.96920536,54488.0,54487.0,0.1449]
[1725823675155,0.95620536,54488.0,54487.0,0.1449]
[1725823675361,0.9946449,54488.0,54487.0,0.1449]
[1725823675571,0.99071366,54488.0,54487.0,0.1449]
[1725823675832,1.02541959,54488.0,54487.0,0.1449]
[1725823676053,0.90858851,54488.0,54487.0,0.1449]
[1725823677336,0.90858851,54488.0,54487.0,0.1469]
[1725823677545,0.69727193,54488.0,54487.0,0.1489]
[1725823677747,0.61494651,54488.0,54487.0,0.1489]
[1725823677959,0.58824058,54488.0,54487.0,0.1489]
[1725823678610,0.56924058,54488.0,54487.0,0.1489]
[1725823678827,0.57124058,54488.0,54487.0,0.1489]
[1725823679246,0.56924058,54488.0,54487.0,0.1489]
[1725823679690,0.56924058,54488.0,54487.0,0.15053]
[1725823681304,0.56924058,54488.0,54487.0,0.14853]
[1725823681528,0.56924058,54488.0,54487.0,0.15053]
[1725823681709,0.6241363,54488.0,54487.0,0.15053]
[1725823681965,0.6251363,54488.0,54487.0,0.15053]
[1725823682176,0.57024058,54488.0,54487.0,0.15053]
[1725823682457,0.6251363,54488.0,54487.0,0.15053]
[1725823682876,0.57024058,54488.0,54487.0,0.15053]
[1725823683263,0.6251362,54488.0,54487.0,0.15053]
[1725823683700,0.9177782,54488.0,54487.0,0.15053]
[1725823683912,0.86288258,54488.0,54487.0,0.15053]
[1725823684158,0.91778032,54488.0,54487.0,0.15053]
[1725823684377,0.86288258,54488.0,54487.0,0.15053]
[1725823684596,0.55735394,54488.0,54487.0,0.15053]
[1725823684819,0.55835394,54488.0,54487.0,0.15053]
[1725823685708,0.55735394,54488.0,54487.0,0.15053]
[1725823686406,0.55735394,54488.0,54487.0,0.16337546]
[1725823687053,0.55835394,54488.0,54487.0,0.17987621]
[1725823687491,0.55735394,54488.0,54487.0,0.16337546]
[1725823687925,0.55735394,54488.0,54487.0,0.15053]
[1725823690205,0.55835394,54488.0,54487.0,0.15053]
[1725823690649,0.55835394,54488.0,54487.0,0.1633626]
[1725823690886,0.85199594,54488.0,54487.0,0.1633626]
[1725823691097,0.55835394,54488.0,54487.0,0.1633626]
[1725823691501,0.85199594,54488.0,54487.0,0.1633626]
[1725823691776,0.55835394,54488.0,54487.0,0.1633626]
[1725823692002,0.55835394,54488.0,54487.0,0.15053]
[1725823693278,0.55735394,54488.0,54487.0,0.15053]
[1725823693720,0.55735394,54488.0,54487.0,0.1633626]
[1725823694388,0.85099594,54488.0,54487.0,0.1633626]
[1725823694600,0.55735394,54488.0,54487.0,0.1633626]
[1725823694812,0.55735394,54488.0,54487.0,0.15053]
[1725823695060,0.85199594,54488.0,54487.0,0.15053]
[1725823695269,0.90692335,54488.0,54487.0,0.15053]
[1725823695508,0.85199594,54488.0,54487.0,0.15053]
[1725823695727,0.82321836,54488.0,54487.0,0.15053]
[1725823695956,0.52957636,54488.0,54487.0,0.15053]
[1725823696381,0.82221836,54488.0,54487.0,0.15053]
[1725823696589,0.82221836,54488.0,54487.0,0.1633626]
[1725823696790,0.82221836,54488.0,54487.0,0.15053]
[1725823698270,0.52857636,54488.0,54487.0,0.15053]
[1725823698720,0.52957636,54488.0,54487.0,0.1633626]
[1725823699446,0.82321836,54488.0,54487.0,0.1633626]
[1725823699675,0.82321836,54488.0,54487.0,0.15053]
[1725823699890,0.52957636,54488.0,54487.0,0.15053]
[1725823700553,0.61197448,54488.0,54487.0,0.15053]
[1725823700994,0.61197448,54488.0,54487.0,0.16336063]
[1725823701210,0.61097448,54488.0,54487.0,0.16336063]
[1725823701452,0.90461648,54488.0,54487.0,0.16336063]
[1725823701657,0.90461648,54488.0,54487.0,0.15053]
[1725823702093,0.63975002,54488.0,54487.0,0.15053]
[1725823702304,0.27559654,54488.0,54487.0,0.23875311]
[1725823702738,0.27559654,54488.0,54487.0,0.25158374]
[1725823702956,0.27559654,54488.0,54487.0,0.16336063]
[1725823703384,0.246821,54488.0,54487.0,0.16336063]
[1725823703598,0.27559575,54488.0,54487.0,0.16336063]
[1725823704883,0.27659575,54488.0,54487.0,0.16336063]
[1725823705572,0.27741075,54488.0,54487.0,0.29195556]
[1725823706947,0.86469475,54488.0,54487.0,0.16336063]
[1725823707381,0.86469475,54488.0,54487.0,0.15053]
[1725823707615,0.91965208,54488.0,54487.0,0.15053]
[1725823707893,1.15833675,54488.0,54487.0,0.14853]
[1725823708340,1.24076612,54488.0,54487.0,0.14853]
[1725823709030,1.15833675,54488.0,54487.0,0.14853]
[1725823709657,1.24076612,54488.0,54487.0,0.15053]
[1725823710553,1.129562,54488.0,54487.0,0.15053]
[1725823710780,1.21199137,54488.0,54487.0,0.15053]
[1725823711935,1.24076646,54488.0,54487.0,0.15053]
[1725823712885,1.23976646,54488.0,54487.0,0.15053]
[1725823713107,1.24176646,54488.0,54487.0,0.15053]
[1725823713551,1.15733709,54488.0,54487.0,0.15053]
[1725823713991,1.39018129,54488.0,54487.0,0.15053]
[1725823715591,1.28031713,54488.0,54487.0,0.15053]
[1725823716043,1.28431713,54488.0,54487.0,0.15053]
[1725823716273,1.39429141,54488.0,54487.0,0.15053]
[1725823716517,1.28131713,54488.0,54487.0,0.15053]
[1725823716785,1.39030357,54488.0,54487.0,0.00563]
[1725823717006,1.28431713,54488.0,54487.0,0.00563]
[1725823717228,1.28531713,54488.0,54487.0,0.06753]
[1725823717447,1.28131713,54488.0,54487.0,0.06753]
[1725823717667,1.28131713,54488.0,54487.0,0.06553]
[1725823718114,1.28131713,54488.0,54487.0,0.06753]
[1725823718825,1.42264733,54488.0,54487.0,0.06753]
[1725823719272,1.41864733,54488.0,54487.0,0.06753]
[1725823719518,1.41964733,54488.0,54487.0,0.06753]
[1725823719736,1.42064733,54488.0,54487.0,0.06753]
[1725823720693,1.28331713,54488.0,54487.0,0.06753]
[1725823721581,1.16033709,54488.0,54487.0,0.06753]
[1725823721824,1.16033709,54488.0,54487.0,0.06553]
[1725823721825,1.2832689,54488.0,54487.0,0.06553]
[1725823723193,1.2832689,54488.0,54487.0,0.06753]
[1725823725722,1.2802689,54488.0,54487.0,0.06753]
[1725823725953,1.2832689,54488.0,54487.0,0.06753]
[1725823726188,1.2832689,54488.0,54487.0,0.15053]
[1725823726418,1.2802689,54488.0,54487.0,0.15053]
[1725823726649,1.27999997,54488.0,54487.0,0.15053]
[1725823726926,1.28199997,54488.0,54487.0,0.15053]
[1725823729004,1.12596531,54488.0,54487.0,0.1657462]
[1725823729250,0.69714668,54488.0,54487.0,0.25396931]
[1725823729479,0.65461987,54488.0,54487.0,0.25396931]
[1725823729706,0.65461987,54488.0,54487.0,0.26731519]
[1725823730801,0.65461732,54488.0,54487.0,0.25209899]
[1725823731030,0.57205309,54488.0,54487.0,0.25209899]
[1725823731461,0.65461671,54488.0,54487.0,0.25209899]
[1725823731667,0.65461575,54488.0,54487.0,0.25209899]
[1725823731898,0.27841109,54488.0,54487.0,0.25209899]
[1725823732153,0.36097465,54488.0,54487.0,0.25209899]
[1725823732387,0.36097465,54488.0,54487.0,0.29215549]
[1725823732851,0.27841109,54488.0,54487.0,0.29215549]
[1725823733069,0.40219425,54488.0,54487.0,0.29215549]
[1725823733284,0.40203749,54488.0,54487.0,0.25209899]
[1725823733949,0.27841109,54488.0,54487.0,0.25209899]
[1725823735684,0.57205309,54488.0,54487.0,0.25209899]
[1725823736657,0.57205309,54488.0,54487.0,0.23875311]
[1725823737126,0.57205309,54488.0,54487.0,0.25209509]
[1725823739402,0.65460787,54488.0,54487.0,0.25209509]
[1725823740062,0.57205309,54488.0,54487.0,0.25209509]
[1725823740286,0.543278,54488.0,54487.0,0.25209509]
[1725823740509,0.6258322,54488.0,54487.0,0.25209509]
[1725823741555,0.66698638,54488.0,54487.0,0.25209509]
[1725823741814,0.69545375,54488.0,54487.0,0.16387198]
[1725823742023,0.69545375,54488.0,54487.0,0.15053]
[1725823742259,0.69545375,54488.0,54487.0,0.16387198]
[1725823742474,0.69545375,54488.0,54487.0,0.15053]
[1725823742660,0.69545375,54488.0,54487.0,0.16387198]
[1725823742907,0.57205265,54488.0,54487.0,0.16387198]
[1725823743824,0.65460649,54488.0,54487.0,0.16387198]
[1725823744478,0.65460649,54488.0,54487.0,0.15053]
[1725823744695,0.57205265,54488.0,54487.0,0.15053]
[1725823745568,0.86569465,54488.0,54487.0,0.15053]
[1725823746010,0.55460844,54488.0,54487.0,0.17456851]
[1725823746231,0.55460844,54488.0,54487.0,0.26279162]
[1725823746232,0.11414544,54488.0,54487.0,0.26279162]
[1725823746462,0.03158965,54488.0,54487.0,1.0102536]
[1725823746714,0.002815,54488.0,54487.0,1.0102536]
[1725823746941,0.002815,54488.0,54487.0,1.3039016]
[1725823747171,0.002815,54488.0,54487.0,1.3059016]
[1725823747881,0.000815,54488.0,54487.0,1.3059016]
[1725823748317,0.002815,54488.0,54487.0,1.21767849]
[1725823748533,0.002815,54488.0,54487.0,1.3059016]
[1725823748746,0.001815,54488.0,54487.0,1.3059016]
[1725823748965,0.002815,54488.0,54487.0,1.3039016]
[1725823749869,0.002815,54488.0,54487.0,1.3059016]
[1725823750313,0.000815,54488.0,54487.0,1.3059016]
[1725823750542,0.001815,54488.0,54487.0,1.3069016]
[1725823750780,0.001815,54488.0,54487.0,1.3059016]
[1725823751287,0.002815,54488.0,54487.0,1.3069016]
[1725823753912,0.002815,54488.0,54487.0,1.3169016]
[1725823754139,0.002815,54488.0,54487.0,1.3369016]
[1725823773855,0.19050041,54503.0,54502.0,0.004]
[1725823774353,0.19050041,54503.0,54502.0,0.01730906]
[1725823774603,0.63084141,54503.0,54502.0,0.004]
[1725823774817,0.63084141,54503.0,54502.0,0.01730906]
[1725823775038,0.63084141,54503.0,54502.0,0.004]
[1725823775248,0.63184141,54503.0,54502.0,0.02653137]
[1725823775494,0.63184141,54503.0,54502.0,0.01322231]
[1725823776007,0.63184141,54503.0,54502.0,0.02653137]
[1725823776237,0.63184141,54503.0,54502.0,0.01322231]
[1725823776451,0.63184141,54503.0,54502.0,0.02753137]
[1725823776669,0.63184141,54503.0,54502.0,0.01422231]
[1725823776876,0.63184141,54503.0,54502.0,0.02753137]
[1725823777613,0.101,54503.0,54502.0,0.02753137]
[1725823777863,0.101,54503.0,54502.0,0.6035285]
[1725823777864,0.001,54503.0,54502.0,0.6035285]
[1725823778093,0.001,54503.0,54502.0,0.8970955]
[1725823778770,0.001,54503.0,54502.0,0.6035285]
[1725823779396,0.000815,54504.0,54503.0,0.14878]
[1725823779661,0.000815,54504.0,54503.0,0.56759351]
[1725823779861,0.000815,54504.0,54503.0,0.57988404]
[1725823780317,0.000815,54504.0,54503.0,1.01464504]
[1725823780531,0.001815,54504.0,54503.0,1.01464504]
[1725823780968,0.002815,54504.0,54503.0,1.01764504]
[1725823781186,0.002815,54504.0,54503.0,1.01464504]
[1725823782788,0.003815,54504.0,54503.0,1.01964504]
[1725823783006,0.000815,54504.0,54503.0,1.01364504]
[1725823783240,0.002815,54504.0,54503.0,1.01964504]
[1725823783674,0.000815,54504.0,54503.0,1.01364504]
[1725823783947,0.000815,54504.0,54503.0,1.01864504]
[1725823783948,0.001815,54504.0,54503.0,1.01864504]
[1725823784147,0.002815,54504.0,54503.0,1.01964504]
[1725823784856,0.002815,54504.0,54503.0,1.01597604]
[1725823793287,0.294313,54515.0,54513.0,0.002]
[1725823793531,0.440253,54514.0,54513.0,0.002]
[1725823793749,0.440253,54514.0,54513.0,0.01526495]
[1725823794416,0.440253,54514.0,54513.0,0.002]
[1725823795794,0.541253,54514.0,54513.0,0.002]
[1725823796233,0.541253,54514.0,54513.0,0.005]
[1725823796660,0.550353,54514.0,54513.0,0.005]
[1725823798021,0.551168,54514.0,54513.0,0.005]
[1725823800296,0.84467,54514.0,54513.0,0.005]
[1725823800789,1.31013605,54514.0,54513.0,0.005]
[1725823801065,1.31013605,54514.0,54513.0,0.003]
[1725823801297,1.65991667,54514.0,54513.0,0.003]
[1725823801553,1.78985835,54514.0,54513.0,0.003]
[1725823801965,1.78885835,54514.0,54513.0,0.003]
[1725823802221,1.9262053,54514.0,54513.0,0.003]
[1725823802437,0.819377,54505.0,54504.0,0.002]
[1725823802652,0.672602,54505.0,54503.0,0.00363]
[1725823802888,0.73389,54504.0,54503.0,0.00363]
[1725823803158,0.73389,54504.0,54503.0,0.00163]
[1725823803159,1.036546,54504.0,54503.0,0.00163]
[1725823803615,1.34685103,54504.0,54503.0,0.00163]
[1725823803867,1.26435248,54504.0,54503.0,0.00563]
[1725823804090,1.13644766,54504.0,54503.0,0.00563]
[1725823804312,1.13644766,54504.0,54503.0,0.00863]
[1725823805644,1.13644766,54504.0,54503.0,0.00163]
[1725823805906,1.13844766,54504.0,54503.0,0.00663]
[1725823806148,1.13744766,54504.0,54503.0,0.00363]
[1725823806366,1.13644766,54504.0,54503.0,0.00363]
[1725823806587,1.13844766,54504.0,54503.0,0.00363]
[1725823806832,1.14344766,54504.0,54503.0,0.00363]
[1725823807257,1.13644766,54504.0,54503.0,0.00363]
[1725823807482,1.13944766,54504.0,54503.0,0.00363]
[1725823808347,1.22085775,54504.0,54503.0,0.00363]
[1725823808801,1.22085775,54504.0,54503.0,0.00463]
[1725823809455,1.22167275,54504.0,54503.0,0.00463]
[1725823810186,1.22167275,54504.0,54503.0,0.00263]
[1725823810448,1.41476705,54504.0,54503.0,0.09389]
[1725823810900,1.29143275,54504.0,54503.0,0.09389]
[1725823811128,1.24912406,54504.0,54503.0,0.09389]
[1725823811824,1.29170849,54504.0,54503.0,0.09289]
[1725823812038,1.39857544,54504.0,54503.0,0.09289]
[1725823812273,1.40657544,54504.0,54503.0,0.09289]
[1725823812530,1.41257544,54504.0,54503.0,0.09289]
[1725823812741,1.40457544,54504.0,54503.0,0.09289]
[1725823812981,1.40557544,54504.0,54503.0,0.09289]
[1725823813222,1.40957544,54504.0,54503.0,0.09289]
[1725823813443,1.40796835,54504.0,54503.0,0.09289]
[1725823817314,1.29817005,54504.0,54503.0,0.09289]
[1725823817539,1.40747722,54504.0,54503.0,0.09289]
[1725823817990,1.58864899,54504.0,54503.0,0.09289]
[1725823820956,1.47885069,54504.0,54503.0,0.09289]
[1725823821166,1.43822024,54504.0,54503.0,0.09289]
[1725823821867,1.35593196,54504.0,54503.0,0.09289]
[1725823822538,1.43820403,54504.0,54503.0,0.09289]
[1725823822808,1.25703226,54504.0,54503.0,0.09289]
[1725823823466,1.25702781,54504.0,54503.0,0.09289]
[1725823826108,1.80832472,54504.0,54503.0,0.09289]
[1725823826328,1.94543743,54504.0,54503.0,0.09289]
[1725823826603,1.80832472,54504.0,54503.0,0.09289]
[1725823826805,1.94540716,54504.0,54503.0,0.09289]
[1725823827031,1.72752481,54504.0,54503.0,0.09289]
[1725823827283,1.16566019,54504.0,54503.0,0.09289]
[1725823827505,1.22050309,54504.0,54503.0,0.09289]
[1725823827710,1.24791499,54504.0,54503.0,0.09289]
[1725823828382,1.24791925,54504.0,54503.0,0.09289]
[1725823828869,1.22050359,54504.0,54503.0,0.09289]
[1725823830504,1.16566019,54504.0,54503.0,0.09289]
[1725823830734,1.22051178,54504.0,54503.0,0.09289]
[1725823830960,1.16566019,54504.0,54503.0,0.09289]
[1725823831176,1.22051202,54504.0,54503.0,0.09289]
[1725823831394,1.16566019,54504.0,54503.0,0.09289]
[1725823831614,1.22051717,54504.0,54503.0,0.09289]
[1725823831826,1.24791925,54504.0,54503.0,0.09289]
[1725823833381,1.24794922,54504.0,54503.0,0.09289]
[1725823833598,1.16566019,54504.0,54503.0,0.09289]
[1725823835109,1.24796306,54504.0,54503.0,0.09289]
[1725823835678,1.16566019,54504.0,54503.0,0.09289]
[1725823835772,1.16566019,54504.0,54503.0,0.09489]
[1725823836012,1.16566019,54504.0,54503.0,0.16149]
[1725823836240,1.24797299,54504.0,54503.0,0.16149]
[1725823838351,1.16566019,54504.0,54503.0,0.16149]
[1725823838584,1.24797299,54504.0,54503.0,0.16349]
[1725823838797,0.87210419,54504.0,54503.0,0.16349]
[1725823839031,0.57854819,54504.0,54503.0,0.16349]
[1725823839261,0.55205066,54504.0,54503.0,0.23949]
[1725823839759,0.55205066,54504.0,54503.0,0.26612583]
[1725823842939,0.54805066,54504.0,54503.0,0.26612583]
[1725823843187,0.54805066,54504.0,54503.0,0.23949]
[1725823843467,0.54905066,54504.0,54503.0,0.23949]
[1725823843696,0.54105066,54504.0,54503.0,0.23949]
[1725823843924,0.54605066,54504.0,54503.0,0.24249]
[1725823844386,0.89051628,54504.0,54503.0,0.24249]
[1725823845549,0.83560666,54504.0,54503.0,0.24249]
[1725823846687,0.89060545,54504.0,54503.0,0.24249]
[1725823849938,0.30349345,54504.0,54503.0,0.266739]
[1725823850172,0.30249345,54504.0,54503.0,0.263739]
[1725823850389,0.15581379,54504.0,54503.0,0.26611466]
[1725823850612,0.15581379,54504.0,54503.0,0.26911466]
[1725823850845,0.30259179,54504.0,54503.0,0.26911466]
[1725823851108,0.247593,54504.0,54503.0,0.26911466]
[1725823851332,0.247593,54504.0,54503.0,0.26611466]
[1725823852656,0.542149,54504.0,54503.0,0.26911466]
[1725823852881,0.248593,54504.0,54503.0,0.26911466]
[1725823853788,0.148593,54504.0,54503.0,0.26911466]
[1725823857499,0.442149,54504.0,54503.0,0.26911466]
[1725823866218,0.148593,54504.0,54503.0,0.26911466]
[1725823866433,0.001815,54504.0,54503.0,0.30484844]
[1725823867560,0.001815,54504.0,54503.0,0.26911466]
[1725823876973,0.001815,54504.0,54503.0,0.41589466]
[1725823877667,0.001815,54504.0,54503.0,0.26911466]
[1725823879863,0.001815,54504.0,54503.0,0.41589466]
[1725823880784,0.001815,54504.0,54503.0,0.70945566]
[1725823880996,0.293526,54510.0,54509.0,0.004]
[1725823881208,0.18336272,54514.0,54509.0,0.004]
[1725823881209,0.100815,54514.0,54513.0,0.0679]
[1725823881429,0.100815,54514.0,54513.0,0.1419]
[1725823881659,0.73457,54514.0,54513.0,0.02959232]
[1725823881880,0.83457,54514.0,54513.0,0.02959232]
[1725823882092,0.83457,54514.0,54513.0,0.003]
[1725823882300,0.8896311,54514.0,54513.0,0.003]
[1725823882518,0.8888161,54514.0,54513.0,0.005]
[1725823882705,0.833755,54514.0,54513.0,0.003]
[1725823883253,0.81758228,54514.0,54513.0,0.003]
[1725823883452,0.76451672,54514.0,54513.0,0.003]
[1725823883683,0.81958228,54514.0,54513.0,0.003]
[1725823883907,0.76451672,54514.0,54513.0,0.003]
[1725823884129,0.81959735,54514.0,54513.0,0.003]
[1725823884349,0.76451672,54514.0,54513.0,0.003]
[1725823884571,0.76451672,54514.0,54513.0,0.004]
[1725823884805,0.81959735,54514.0,54513.0,0.004]
[1725823885033,0.76451672,54514.0,54513.0,0.004]
[1725823885326,0.81959735,54514.0,54513.0,0.004]
[1725823885575,0.81959735,54514.0,54513.0,0.001]
[1725823885576,1.19032757,54514.0,54513.0,0.001]
[1725823885794,1.89001459,54514.0,54513.0,0.001]
[1725823886040,1.89901459,54514.0,54513.0,0.001]
[1725823886302,1.89901459,54514.0,54513.0,0.0007]
[1725823886546,1.89701459,54514.0,54513.0,0.0007]
[1725823887023,1.90101459,54514.0,54513.0,0.0007]
[1725823887463,1.027446,54504.0,54503.0,0.09289]
[1725823887680,1.26246756,54504.0,54503.0,0.09289]
[1725823888112,1.29123574,54504.0,54503.0,0.09289]
[1725823888704,0.6241592,54504.0,54503.0,0.23279]
[1725823888912,0.86265818,54504.0,54503.0,0.23279]
[1725823889179,0.540334,54504.0,54503.0,0.12054579]
[1725823889385,0.83389,54504.0,54503.0,0.09489]
[1725823889608,0.83389,54504.0,54503.0,0.12154579]
[1725823889820,0.83389,54504.0,54503.0,0.12254579]
[1725823890024,0.540334,54504.0,54503.0,0.09589]
[1725823890702,0.540334,54504.0,54503.0,0.09989]
[1725823890945,0.1,54504.0,54503.0,0.25201311]
[1725823891156,0.000814,54515.0,54513.0,0.002]
[1725823891383,0.000814,54515.0,54514.0,0.1399]
[1725823891834,0.000814,54515.0,54514.0,0.16648854]
[1725823892052,0.000814,54515.0,54514.0,0.16848854]
[1725823892268,0.009814,54515.0,54514.0,0.16848854]
[1725823892697,0.109814,54515.0,54514.0,0.16848854]
[1725823893178,0.109814,54515.0,54514.0,0.1389]
[1725823893652,0.100814,54515.0,54514.0,0.16548854]
[1725823893844,0.100814,54515.0,54514.0,0.16948854]
[1725823894274,0.247562,54515.0,54514.0,0.16548854]
[1725823894499,0.248562,54515.0,54514.0,0.17248854]
[1725823894913,0.248562,54515.0,54514.0,0.16548854]
[1725823895131,0.249562,54515.0,54514.0,0.17248854]
[1725823895336,0.247562,54515.0,54514.0,0.16548854]
[1725823896126,0.247562,54515.0,54514.0,0.16748854]
[1725823896759,0.248562,54515.0,54514.0,0.17448854]
[1725823897010,0.247562,54515.0,54514.0,0.16548854]
[1725823897395,0.247562,54515.0,54514.0,0.17548854]
[1725823897396,0.249562,54515.0,54514.0,0.17548854]
[1725823902605,0.836556,54515.0,54514.0,0.10348854]
[1725823902815,0.91914196,54515.0,54514.0,0.0769]
[1725823903479,0.836556,54515.0,54514.0,0.0769]
[1725823903691,0.91914196,54515.0,54514.0,0.0769]
[1725823904102,0.91714196,54515.0,54514.0,0.0669]
[1725823904301,1.0336334,54515.0,54514.0,0.0679]
[1725823904525,1.0336334,54515.0,54514.0,0.0719]
[1725823904728,1.0336334,54515.0,54514.0,0.0679]
[1725823905201,1.0336334,54515.0,54514.0,0.0719]
[1725823905561,1.0336334,54515.0,54514.0,0.0709]
[1725823906099,1.03357424,54515.0,54514.0,0.0719]
[1725823906324,0.9170828,54515.0,54514.0,0.0719]
[1725823906537,0.834556,54515.0,54514.0,0.0719]
[1725823906772,0.91708275,54515.0,54514.0,0.0719]
[1725823907217,0.94388278,54515.0,54514.0,0.0719]
[1725823908102,0.62358575,54515.0,54514.0,0.0719]
[1725823908555,0.62358575,54515.0,54514.0,0.09904805]
[1725823910773,0.5960946,54515.0,54514.0,0.09904805]
[1725823913674,0.3373345,54515.0,54514.0,0.09904805]
[1725823913887,0.4290469,54515.0,54514.0,0.09904805]
[1725823914101,0.4298619,54515.0,54514.0,0.09904805]
[1725823915358,0.147563,54515.0,54514.0,0.09904805]
[1725823915568,0.147563,54515.0,54514.0,0.21160896]
[1725823915842,0.000815,54515.0,54514.0,0.21160896]
[1725823916058,0.000815,54515.0,54514.0,0.65186196]
[1725823919913,0.000815,54515.0,54514.0,0.94536396]
[1725823920131,0.000815,54515.0,54514.0,0.65186196]
[1725823924511,0.000815,54515.0,54514.0,0.94536396]
[1725823925567,0.000815,54515.0,54514.0,1.27086596]
[1725823925801,0.02876431,54520.0,54519.0,1.110762]
[1725823926059,0.60932357,54535.0,54534.0,0.1453]
[1725823926287,0.55430836,54535.0,54534.0,0.1453]
[1725823926520,0.146694,54535.0,54534.0,0.17235098]
[1725823926746,0.146694,54535.0,54534.0,0.1453]
[1725823926987,0.146694,54535.0,54534.0,0.17135098]
[1725823927201,0.440083,54535.0,54534.0,0.17135098]
[1725823927467,0.146694,54535.0,54534.0,0.17535098]
[1725823927695,0.440083,54535.0,54534.0,0.17135098]
[1725823928397,0.440083,54535.0,54534.0,0.17235098]
[1725823928624,0.440083,54535.0,54534.0,0.09375098]
[1725823928839,0.440083,54535.0,54534.0,0.02905098]
[1725823929044,0.440083,54535.0,54534.0,0.03205098]
[1725823929249,0.440083,54535.0,54534.0,0.03305098]
[1725823929685,0.440083,54535.0,54534.0,0.03205098]
[1725823929908,0.440083,54535.0,54534.0,0.03005098]
[1725823930148,0.440083,54535.0,54534.0,0.03305098]
[1725823930409,1.32283989,54535.0,54534.0,0.02805098]
[1725823930643,1.32649491,54535.0,54534.0,0.02805098]
[1725823930872,1.115361,54535.0,54534.0,0.004]
[1725823931358,1.115361,54535.0,54534.0,0.003]
[1725823931591,1.115361,54535.0,54534.0,0.004]
[1725823932080,1.115361,54535.0,54534.0,0.01]
[1725823932305,1.115361,54535.0,54534.0,0.013]
[1725823932534,1.044761,54535.0,54534.0,0.013]
[1725823933018,0.454083,54535.0,54534.0,0.014]
[1725823933234,0.448083,54535.0,54534.0,0.1543]
[1725823933481,0.014,54535.0,54534.0,0.19772742]
[1725823933732,0.014,54535.0,54534.0,0.18129742]
[1725823934402,0.006,54535.0,54534.0,0.18129742]
[1725823934643,0.152694,54535.0,54534.0,0.18129742]
[1725823934867,0.160694,54535.0,54534.0,0.18129742]
[1725823935148,0.160694,54535.0,54534.0,0.18229742]
[1725823935149,0.158694,54535.0,54534.0,0.18229742]
[1725823935615,0.146694,54535.0,54534.0,0.18429742]
[1725823935844,0.147694,54535.0,54534.0,0.19029742]
[1725823936009,0.147694,54535.0,54534.0,0.18729742]
[1725823936237,0.147694,54535.0,54534.0,0.19029742]
[1725823936461,0.146694,54535.0,54534.0,0.18429742]
[1725823936871,0.146694,54535.0,54534.0,0.18929742]
[1725823937245,0.146694,54535.0,54534.0,0.18429742]
[1725823938103,0.02875126,54538.0,54537.0,0.002]
[1725823938307,0.46881026,54538.0,54537.0,0.002]
[1725823939304,0.47081026,54538.0,54537.0,0.001]
[1725823939746,1.14476088,54538.0,54537.0,0.003]
[1725823939978,1.14476088,54538.0,54537.0,0.001]
[1725823940219,1.05555626,54538.0,54537.0,0.001]
[1725823940447,1.05555626,54538.0,54537.0,0.002]
[1725823940672,1.05555626,54538.0,54537.0,0.001]
[1725823940900,1.05555626,54538.0,54537.0,0.003]
[1725823941837,0.76218326,54538.0,54537.0,0.003]
[1725823942850,0.76218326,54538.0,54537.0,0.001]
[1725823943082,0.76418326,54538.0,54537.0,0.001]
[1725823943773,0.76618326,54538.0,54537.0,0.001]
[1725823944020,0.76218326,54538.0,54537.0,0.001]